[Event "Titled Tuesday Blitz March 22 Late 2022"]
[White "Reprintsev, Alexander"]
[Black "Papasimakopoulos, Alexandros"]
[WhiteFideId "14100541"]
[BlackFideId "4244125"]
[WhiteElo "2487"]
[BlackElo "2709"]
[Result "0-1"]
[Round "03"]
[TimeControl "180+1"]
[Date "2022.03.22"]
[WhiteClock "0:00:08"]
[BlackClock "0:00:10"]

1. e4 {[%clk 0:02:47]}  e6 {[%clk 0:02:58]} 2. Qe2 {[%clk 0:02:46]}  c5 {[%clk 0:02:58]} 3. b3 {[%clk 0:02:46]}  Nc6 {[%clk 0:02:55]} 4. Bb2 {[%clk 0:02:46]}  d6 {[%clk 0:02:46]} 5. f4 {[%clk 0:02:46]}  e5 {[%clk 0:02:44]} 6. Qf2 {[%clk 0:02:40]}  Nf6 {[%clk 0:02:43]} 7. Nc3 {[%clk 0:02:40]}  Be7 {[%clk 0:02:24]} 8. O-O-O {[%clk 0:02:17]}  Ng4 {[%clk 0:02:22]} 9. Qe1 {[%clk 0:02:08]}  exf4 {[%clk 0:02:19]} 10. Nd5 {[%clk 0:02:06]}  O-O {[%clk 0:02:00]} 11. Nh3 {[%clk 0:02:05]}  Bh4 {[%clk 0:01:58]} 12. Qe2 {[%clk 0:01:47]}  Nd4 {[%clk 0:01:48]} 13. Bxd4 {[%clk 0:01:35]}  cxd4 {[%clk 0:01:49]} 14. Nhxf4 {[%clk 0:01:34]}  Nf2 {[%clk 0:01:45]} 15. g3 {[%clk 0:01:34]}  Nxh1 {[%clk 0:01:27]} 16. gxh4 {[%clk 0:01:32]}  Qxh4 {[%clk 0:01:26]} 17. Bg2 {[%clk 0:01:06]}  Bg4 {[%clk 0:01:12]} 18. Bf3 {[%clk 0:01:05]}  Nf2 {[%clk 0:01:00]} 19. Rg1 {[%clk 0:00:58]}  h5 {[%clk 0:00:46]} 20. Bxg4 {[%clk 0:00:43]}  Nxg4 {[%clk 0:00:42]} 21. h3 {[%clk 0:00:30]}  Qf2 {[%clk 0:00:38]} 22. Nf6+ {[%clk 0:00:12]}  Kh8 {[%clk 0:00:35]} 23. Qxf2 {[%clk 0:00:12]}  Nxf2 {[%clk 0:00:34]} 24. N6xh5 {[%clk 0:00:12]}  Nxe4 {[%clk 0:00:25]} 25. d3 {[%clk 0:00:11]}  g6 {[%clk 0:00:22]} 26. dxe4 {[%clk 0:00:10]}  gxh5 {[%clk 0:00:22]} 27. Rg5 {[%clk 0:00:10]}  Rg8 {[%clk 0:00:20]} 28. Rxh5+ {[%clk 0:00:10]}  Kg7 {[%clk 0:00:21]} 29. Rd5 {[%clk 0:00:11]}  Rad8 {[%clk 0:00:18]} 30. Rxd4 {[%clk 0:00:11]}  Rh8 {[%clk 0:00:19]} 31. Rd3 {[%clk 0:00:11]}  Rh4 {[%clk 0:00:18]} 32. Nd5 {[%clk 0:00:11]}  Rxe4 {[%clk 0:00:18]} 33. Rg3+ {[%clk 0:00:11]}  Kf8 {[%clk 0:00:18]} 34. Nf6 {[%clk 0:00:11]}  Re6 {[%clk 0:00:18]} 35. Rg8+ {[%clk 0:00:09]}  Ke7 {[%clk 0:00:18]} 36. Nd5+ {[%clk 0:00:09]}  Kd7 {[%clk 0:00:19]} 37. Rg7 {[%clk 0:00:09]}  Rf8 {[%clk 0:00:18]} 38. Kb2 {[%clk 0:00:09]}  Rg6 {[%clk 0:00:17]} 39. Rh7 {[%clk 0:00:09]}  Rg2 {[%clk 0:00:17]} 40. Nf4 {[%clk 0:00:08]}  Rf2 {[%clk 0:00:17]} 41. Ng6 {[%clk 0:00:08]}  Rg8 {[%clk 0:00:17]} 42. Nh4 {[%clk 0:00:09]}  Kc6 {[%clk 0:00:17]} 43. a4 {[%clk 0:00:08]}  a5 {[%clk 0:00:17]} 44. Rh5 {[%clk 0:00:08]}  Rg3 {[%clk 0:00:16]} 45. Nf5 {[%clk 0:00:08]}  Rgg2 {[%clk 0:00:16]} 46. Nd4+ {[%clk 0:00:08]}  Kc7 {[%clk 0:00:15]} 47. Kc3 {[%clk 0:00:09]}  b6 {[%clk 0:00:15]} 48. Kc4 {[%clk 0:00:09]}  Rf4 {[%clk 0:00:14]} 49. c3 {[%clk 0:00:09]}  Rg3 {[%clk 0:00:12]} 50. Rh7 {[%clk 0:00:09]}  Rf1 {[%clk 0:00:12]} 51. Kb5 {[%clk 0:00:09]}  Rxc3 {[%clk 0:00:11]} 52. h4 {[%clk 0:00:08]}  Rf4 {[%clk 0:00:09]} 53. Ne6+ {[%clk 0:00:08]}  Kb7 {[%clk 0:00:10]} 54. Nxf4 {[%clk 0:00:08]}  Rc5# {[%clk 0:00:10]} 0-1


[Site "https://www.chess.com"]

[Event "Titled Tuesday Blitz March 22 Late 2022"]
[White "Rolfe, Warrick"]
[Black "Petrova, Irina"]
[WhiteFideId "2603802"]
[BlackFideId "14124122"]
[WhiteElo "2550"]
[BlackElo "1993"]
[Result "1-0"]
[Round "03"]
[TimeControl "180+1"]
[Date "2022.03.22"]
[WhiteClock "0:02:05"]
[BlackClock "0:01:04"]

1. e4 {[%clk 0:03:00]}  d6 {[%clk 0:03:00]} 2. Bc4 {[%clk 0:02:59]}  Nf6 {[%clk 0:03:00]} 3. d3 {[%clk 0:02:59]}  e5 {[%clk 0:02:59]} 4. Nc3 {[%clk 0:02:58]}  Be7 {[%clk 0:02:59]} 5. f4 {[%clk 0:02:58]}  O-O {[%clk 0:02:56]} 6. f5 {[%clk 0:02:53]}  c6 {[%clk 0:02:54]} 7. Bb3 {[%clk 0:02:53]}  d5 {[%clk 0:02:53]} 8. Qf3 {[%clk 0:02:53]}  d4 {[%clk 0:02:42]} 9. Nce2 {[%clk 0:02:50]}  Bb4+ {[%clk 0:02:43]} 10. c3 {[%clk 0:02:48]}  dxc3 {[%clk 0:02:42]} 11. bxc3 {[%clk 0:02:49]}  Be7 {[%clk 0:02:40]} 12. g4 {[%clk 0:02:47]}  Nfd7 {[%clk 0:02:30]} 13. Ng3 {[%clk 0:02:42]}  Nc5 {[%clk 0:02:28]} 14. Bc2 {[%clk 0:02:41]}  Bg5 {[%clk 0:02:18]} 15. Bxg5 {[%clk 0:02:34]}  Qxg5 {[%clk 0:02:19]} 16. h4 {[%clk 0:02:35]}  Qe7 {[%clk 0:02:08]} 17. N1e2 {[%clk 0:02:28]}  b6 {[%clk 0:01:56]} 18. g5 {[%clk 0:02:21]}  f6 {[%clk 0:01:56]} 19. d4 {[%clk 0:02:20]}  exd4 {[%clk 0:01:54]} 20. cxd4 {[%clk 0:02:21]}  Nca6 {[%clk 0:01:53]} 21. Bb3+ {[%clk 0:02:20]}  Kh8 {[%clk 0:01:52]} 22. Qh5 {[%clk 0:02:19]}  Qb4+ {[%clk 0:01:36]} 23. Kf1 {[%clk 0:02:13]}  Nd7 {[%clk 0:01:28]} 24. Nf4 {[%clk 0:02:11]}  Qb5+ {[%clk 0:01:04]} 25. Kg1 {[%clk 0:02:05]} 1-0


[Site "https://www.chess.com"]

[Event "Titled Tuesday Blitz March 22 Late 2022"]
[White "Romanchuk, Viktor"]
[Black "Oro, Luis"]
[WhiteFideId "14109271"]
[BlackFideId "104094"]
[WhiteElo "2242"]
[BlackElo "2309"]
[Result "1/2-1/2"]
[Round "03"]
[TimeControl "180+1"]
[Date "2022.03.22"]
[WhiteClock "0:00:38"]
[BlackClock "0:00:32"]

1. d4 {[%clk 0:03:00]}  Nf6 {[%clk 0:02:59]} 2. c4 {[%clk 0:03:00]}  g6 {[%clk 0:02:59]} 3. Nc3 {[%clk 0:03:00]}  Bg7 {[%clk 0:02:58]} 4. Nf3 {[%clk 0:03:00]}  d6 {[%clk 0:02:59]} 5. g3 {[%clk 0:03:01]}  O-O {[%clk 0:02:59]} 6. Bg2 {[%clk 0:03:01]}  Nbd7 {[%clk 0:02:59]} 7. O-O {[%clk 0:03:02]}  e5 {[%clk 0:02:59]} 8. e4 {[%clk 0:03:02]}  exd4 {[%clk 0:02:59]} 9. Nxd4 {[%clk 0:03:03]}  Re8 {[%clk 0:03:00]} 10. h3 {[%clk 0:03:04]}  Nc5 {[%clk 0:02:58]} 11. Re1 {[%clk 0:03:04]}  a5 {[%clk 0:02:58]} 12. Qc2 {[%clk 0:03:03]}  Ng4 {[%clk 0:02:53]} 13. Nf3 {[%clk 0:02:47]}  Nf6 {[%clk 0:02:22]} 14. Bf4 {[%clk 0:02:41]}  Be6 {[%clk 0:02:20]} 15. b3 {[%clk 0:02:28]}  Nfd7 {[%clk 0:02:08]} 16. Rad1 {[%clk 0:02:27]}  Qc8 {[%clk 0:02:07]} 17. Kh2 {[%clk 0:02:23]}  a4 {[%clk 0:01:55]} 18. Nd4 {[%clk 0:02:16]}  axb3 {[%clk 0:01:53]} 19. axb3 {[%clk 0:02:17]}  Ra3 {[%clk 0:01:46]} 20. Ncb5 {[%clk 0:02:08]}  Ra6 {[%clk 0:01:42]} 21. b4 {[%clk 0:02:03]}  Na4 {[%clk 0:01:35]} 22. Be3 {[%clk 0:01:34]}  Nab6 {[%clk 0:01:32]} 23. c5 {[%clk 0:01:28]}  dxc5 {[%clk 0:01:30]} 24. bxc5 {[%clk 0:01:29]}  Nc4 {[%clk 0:01:30]} 25. Nxe6 {[%clk 0:01:23]}  Nxe3 {[%clk 0:01:28]} 26. Rxe3 {[%clk 0:01:23]}  Raxe6 {[%clk 0:01:25]} 27. h4 {[%clk 0:01:16]}  f5 {[%clk 0:00:49]} 28. exf5 {[%clk 0:01:05]}  Rxe3 {[%clk 0:00:49]} 29. fxe3 {[%clk 0:01:04]}  Ne5 {[%clk 0:00:41]} 30. fxg6 {[%clk 0:00:57]}  Ng4+ {[%clk 0:00:41]} 31. Kh1 {[%clk 0:00:56]}  Nxe3 {[%clk 0:00:37]} 32. Qb3+ {[%clk 0:00:51]}  Kh8 {[%clk 0:00:38]} 33. Re1 {[%clk 0:00:48]}  Nxg2 {[%clk 0:00:37]} 34. Rxe8+ {[%clk 0:00:47]}  Qxe8 {[%clk 0:00:37]} 35. Kxg2 {[%clk 0:00:48]}  Qe2+ {[%clk 0:00:37]} 36. Kh3 {[%clk 0:00:48]}  Qf1+ {[%clk 0:00:35]} 37. Kh2 {[%clk 0:00:47]}  Qf2+ {[%clk 0:00:36]} 38. Kh3 {[%clk 0:00:47]}  Qf1+ {[%clk 0:00:35]} 39. Kg4 {[%clk 0:00:45]}  Qe2+ {[%clk 0:00:32]} 40. Kh3 {[%clk 0:00:38]}  Qf1+ {[%clk 0:00:32]} 1/2-1/2


[Site "https://www.chess.com"]

[Event "Titled Tuesday Blitz March 22 Late 2022"]
[White "Rustemov, Alexander"]
[Black "Sztokbant, Bernardo Vainzoff"]
[WhiteFideId "4119002"]
[BlackFideId "2115956"]
[WhiteElo "2787"]
[BlackElo "2541"]
[Result "1-0"]
[Round "03"]
[TimeControl "180+1"]
[Date "2022.03.22"]
[WhiteClock "0:00:23"]
[BlackClock "0:00:01"]

1. d4 {[%clk 0:03:00]}  Nf6 {[%clk 0:02:59]} 2. c4 {[%clk 0:03:01]}  e6 {[%clk 0:02:59]} 3. Nf3 {[%clk 0:03:01]}  d5 {[%clk 0:03:00]} 4. Nc3 {[%clk 0:03:01]}  Be7 {[%clk 0:03:00]} 5. Bg5 {[%clk 0:03:00]}  O-O {[%clk 0:03:00]} 6. e3 {[%clk 0:03:01]}  h6 {[%clk 0:03:00]} 7. Bh4 {[%clk 0:03:00]}  b6 {[%clk 0:03:00]} 8. cxd5 {[%clk 0:02:58]}  Nxd5 {[%clk 0:03:00]} 9. Bxe7 {[%clk 0:02:57]}  Qxe7 {[%clk 0:03:01]} 10. Nxd5 {[%clk 0:02:57]}  exd5 {[%clk 0:03:01]} 11. Rc1 {[%clk 0:02:57]}  Be6 {[%clk 0:03:01]} 12. Qa4 {[%clk 0:02:57]}  c5 {[%clk 0:03:01]} 13. Qa3 {[%clk 0:02:57]}  Nd7 {[%clk 0:03:01]} 14. Ba6 {[%clk 0:02:43]}  Rad8 {[%clk 0:02:35]} 15. O-O {[%clk 0:02:42]}  Qf6 {[%clk 0:02:15]} 16. Be2 {[%clk 0:02:34]}  c4 {[%clk 0:02:10]} 17. b3 {[%clk 0:02:24]}  b5 {[%clk 0:02:05]} 18. Qa6 {[%clk 0:02:03]}  Rb8 {[%clk 0:01:57]} 19. a4 {[%clk 0:01:59]}  cxb3 {[%clk 0:01:30]} 20. axb5 {[%clk 0:01:57]}  Bf5 {[%clk 0:01:16]} 21. Qa3 {[%clk 0:01:52]}  Bc2 {[%clk 0:01:13]} 22. Nd2 {[%clk 0:01:51]}  a6 {[%clk 0:00:55]} 23. Nxb3 {[%clk 0:01:51]}  Qg6 {[%clk 0:00:41]} 24. Qb2 {[%clk 0:01:32]}  Rfc8 {[%clk 0:00:24]} 25. Na1 {[%clk 0:01:22]}  Be4 {[%clk 0:00:23]} 26. Rxc8+ {[%clk 0:01:17]}  Rxc8 {[%clk 0:00:24]} 27. f3 {[%clk 0:01:17]}  Bf5 {[%clk 0:00:20]} 28. bxa6 {[%clk 0:01:17]}  Bd3 {[%clk 0:00:18]} 29. Qa2 {[%clk 0:01:05]}  Ra8 {[%clk 0:00:07]} 30. Qxd5 {[%clk 0:00:48]}  Rxa6 {[%clk 0:00:05]} 31. Bxd3 {[%clk 0:00:47]}  Qxd3 {[%clk 0:00:06]} 32. Qxd7 {[%clk 0:00:47]}  Qxe3+ {[%clk 0:00:06]} 33. Kh1 {[%clk 0:00:46]}  Ra2 {[%clk 0:00:04]} 34. Qc8+ {[%clk 0:00:40]}  Kh7 {[%clk 0:00:03]} 35. Qf5+ {[%clk 0:00:40]}  Kg8 {[%clk 0:00:03]} 36. Qc8+ {[%clk 0:00:28]}  Kh7 {[%clk 0:00:04]} 37. Qc1 {[%clk 0:00:28]}  Qe2 {[%clk 0:00:03]} 38. Rg1 {[%clk 0:00:26]}  Rd2 {[%clk 0:00:03]} 39. Nb3 {[%clk 0:00:25]}  Rc2 {[%clk 0:00:03]} 40. Qd1 {[%clk 0:00:25]}  Qf2 {[%clk 0:00:03]} 41. d5 {[%clk 0:00:25]}  Rb2 {[%clk 0:00:03]} 42. d6 {[%clk 0:00:24]}  Qb6 {[%clk 0:00:02]} 43. d7 {[%clk 0:00:24]}  Qd8 {[%clk 0:00:02]} 44. Nc5 {[%clk 0:00:23]}  Rb5 {[%clk 0:00:01]} 45. Qd3+ {[%clk 0:00:22]}  Kg8 {[%clk 0:00:01]} 46. Qxb5 {[%clk 0:00:23]} 1-0


[Site "https://www.chess.com"]

[Event "Titled Tuesday Blitz March 22 Late 2022"]
[White "Sailer, Mike"]
[Black "Daianu, Cristian-Clement"]
[WhiteFideId "2012901"]
[BlackFideId "1208926"]
[WhiteElo "2109"]
[BlackElo "2159"]
[Result "0-1"]
[Round "03"]
[TimeControl "180+1"]
[Date "2022.03.22"]
[WhiteClock "0:00:01"]
[BlackClock "0:00:13"]

1. d4 {[%clk 0:03:00]}  f5 {[%clk 0:02:58]} 2. e4 {[%clk 0:02:59]}  fxe4 {[%clk 0:02:57]} 3. Nc3 {[%clk 0:03:00]}  Nf6 {[%clk 0:02:58]} 4. Bg5 {[%clk 0:02:59]}  d6 {[%clk 0:02:54]} 5. Bxf6 {[%clk 0:02:56]}  exf6 {[%clk 0:02:55]} 6. Nxe4 {[%clk 0:02:56]}  d5 {[%clk 0:02:45]} 7. Ng3 {[%clk 0:02:52]}  c6 {[%clk 0:02:45]} 8. Bd3 {[%clk 0:02:51]}  Qe7+ {[%clk 0:02:29]} 9. N1e2 {[%clk 0:02:46]}  Bg4 {[%clk 0:02:24]} 10. f3 {[%clk 0:02:34]}  Bd7 {[%clk 0:02:04]} 11. Qd2 {[%clk 0:02:33]}  Na6 {[%clk 0:02:02]} 12. c3 {[%clk 0:02:24]}  Nc7 {[%clk 0:01:58]} 13. O-O-O {[%clk 0:02:08]}  O-O-O {[%clk 0:01:58]} 14. Rhe1 {[%clk 0:02:07]}  g6 {[%clk 0:01:51]} 15. Kb1 {[%clk 0:01:53]}  Qf7 {[%clk 0:01:50]} 16. Nf4 {[%clk 0:01:36]}  Bd6 {[%clk 0:01:45]} 17. Bc2 {[%clk 0:01:14]}  Rde8 {[%clk 0:01:32]} 18. Nd3 {[%clk 0:01:09]}  Kb8 {[%clk 0:01:28]} 19. Bb3 {[%clk 0:00:52]}  h5 {[%clk 0:01:16]} 20. Rxe8+ {[%clk 0:00:50]}  Rxe8 {[%clk 0:01:15]} 21. Re1 {[%clk 0:00:51]}  h4 {[%clk 0:01:05]} 22. Nf1 {[%clk 0:00:50]}  Bf5 {[%clk 0:01:00]} 23. Bc2 {[%clk 0:00:49]}  g5 {[%clk 0:00:55]} 24. Ka1 {[%clk 0:00:35]}  a6 {[%clk 0:00:53]} 25. Ne3 {[%clk 0:00:32]}  Bxd3 {[%clk 0:00:44]} 26. Bxd3 {[%clk 0:00:31]}  Bxh2 {[%clk 0:00:45]} 27. Nf5 {[%clk 0:00:25]}  Bf4 {[%clk 0:00:42]} 28. Qd1 {[%clk 0:00:24]}  Rxe1 {[%clk 0:00:36]} 29. Qxe1 {[%clk 0:00:24]}  Qe6 {[%clk 0:00:37]} 30. Qd1 {[%clk 0:00:23]}  Nb5 {[%clk 0:00:31]} 31. a3 {[%clk 0:00:20]}  Nd6 {[%clk 0:00:31]} 32. Nxd6 {[%clk 0:00:19]}  Bxd6 {[%clk 0:00:31]} 33. Ka2 {[%clk 0:00:17]}  h3 {[%clk 0:00:24]} 34. gxh3 {[%clk 0:00:16]}  Qxh3 {[%clk 0:00:25]} 35. Qe2 {[%clk 0:00:16]}  Qd7 {[%clk 0:00:21]} 36. Qe1 {[%clk 0:00:10]}  Ka7 {[%clk 0:00:21]} 37. Qh1 {[%clk 0:00:10]}  Qe7 {[%clk 0:00:15]} 38. Qh8 {[%clk 0:00:09]}  Qf8 {[%clk 0:00:12]} 39. Qxf8 {[%clk 0:00:09]}  Bxf8 {[%clk 0:00:13]} 40. Bf5 {[%clk 0:00:10]}  Kb6 {[%clk 0:00:13]} 41. b3 {[%clk 0:00:08]}  Kc7 {[%clk 0:00:13]} 42. c4 {[%clk 0:00:08]}  b6 {[%clk 0:00:13]} 43. a4 {[%clk 0:00:08]}  dxc4 {[%clk 0:00:12]} 44. bxc4 {[%clk 0:00:08]}  Kd6 {[%clk 0:00:12]} 45. Kb3 {[%clk 0:00:06]}  c5 {[%clk 0:00:12]} 46. d5 {[%clk 0:00:04]}  a5 {[%clk 0:00:12]} 47. Be4 {[%clk 0:00:03]}  Ke5 {[%clk 0:00:12]} 48. Bd3 {[%clk 0:00:03]}  f5 {[%clk 0:00:13]} 49. Kc3 {[%clk 0:00:03]}  Bg7 {[%clk 0:00:13]} 50. Kd2 {[%clk 0:00:02]}  g4 {[%clk 0:00:13]} 51. fxg4 {[%clk 0:00:02]}  fxg4 {[%clk 0:00:14]} 52. Ke3 {[%clk 0:00:03]}  Bh6+ {[%clk 0:00:13]} 53. Kf2 {[%clk 0:00:03]}  Kd4 {[%clk 0:00:14]} 54. Bf1 {[%clk 0:00:03]}  Bf4 {[%clk 0:00:15]} 55. Be2 {[%clk 0:00:03]}  g3+ {[%clk 0:00:14]} 56. Kg2 {[%clk 0:00:02]}  Kc3 {[%clk 0:00:13]} 57. Kf3 {[%clk 0:00:02]}  Bd6 {[%clk 0:00:13]} 58. Bf1 {[%clk 0:00:01]}  Kb4 {[%clk 0:00:13]} 0-1


[Site "https://www.chess.com"]

[Event "Titled Tuesday Blitz March 22 Late 2022"]
[White "Seo, Jung Min"]
[Black "Manukyan, Sargis A."]
[WhiteFideId "1734687"]
[BlackFideId "13303970"]
[WhiteElo "2401"]
[BlackElo "2187"]
[Result "0-1"]
[Round "03"]
[TimeControl "180+1"]
[Date "2022.03.22"]
[WhiteClock "0:00:03"]
[BlackClock "0:00:11"]

1. Nf3 {[%clk 0:03:00]}  d5 {[%clk 0:02:59]} 2. d4 {[%clk 0:02:59]}  e6 {[%clk 0:02:58]} 3. c4 {[%clk 0:02:58]}  Nf6 {[%clk 0:02:59]} 4. Nc3 {[%clk 0:02:58]}  Be7 {[%clk 0:03:00]} 5. Bg5 {[%clk 0:02:55]}  O-O {[%clk 0:03:00]} 6. e3 {[%clk 0:02:53]}  b6 {[%clk 0:02:58]} 7. cxd5 {[%clk 0:02:50]}  Nxd5 {[%clk 0:02:56]} 8. Bxe7 {[%clk 0:02:47]}  Qxe7 {[%clk 0:02:57]} 9. Nxd5 {[%clk 0:02:47]}  exd5 {[%clk 0:02:58]} 10. Qd2 {[%clk 0:02:45]}  c5 {[%clk 0:02:58]} 11. Be2 {[%clk 0:02:43]}  c4 {[%clk 0:02:57]} 12. O-O {[%clk 0:02:42]}  b5 {[%clk 0:02:58]} 13. a4 {[%clk 0:02:40]}  b4 {[%clk 0:02:57]} 14. a5 {[%clk 0:02:37]}  Nc6 {[%clk 0:02:54]} 15. Rfc1 {[%clk 0:02:28]}  a6 {[%clk 0:02:50]} 16. Ne5 {[%clk 0:02:25]}  Nxe5 {[%clk 0:02:47]} 17. dxe5 {[%clk 0:02:25]}  Qxe5 {[%clk 0:02:48]} 18. Qxb4 {[%clk 0:02:24]}  Rb8 {[%clk 0:02:48]} 19. Qc5 {[%clk 0:02:24]}  Rxb2 {[%clk 0:02:42]} 20. Bxc4 {[%clk 0:02:19]}  Qf6 {[%clk 0:02:42]} 21. Bxd5 {[%clk 0:02:18]}  Qxf2+ {[%clk 0:02:38]} 22. Kh1 {[%clk 0:02:18]}  Be6 {[%clk 0:02:28]} 23. Bf3 {[%clk 0:02:16]}  Bh3 {[%clk 0:02:12]} 24. Rg1 {[%clk 0:02:06]}  h6 {[%clk 0:02:01]} 25. Qh5 {[%clk 0:02:02]}  Be6 {[%clk 0:01:55]} 26. Qe5 {[%clk 0:02:00]}  Rd8 {[%clk 0:01:53]} 27. Raf1 {[%clk 0:01:56]}  Qc2 {[%clk 0:01:48]} 28. Rc1 {[%clk 0:01:56]}  Qb3 {[%clk 0:01:33]} 29. Rc3 {[%clk 0:01:43]}  Qb5 {[%clk 0:01:29]} 30. Rc5 {[%clk 0:01:40]}  Qb4 {[%clk 0:01:24]} 31. Rc6 {[%clk 0:01:37]}  Rb1 {[%clk 0:01:14]} 32. h3 {[%clk 0:01:36]}  Rxg1+ {[%clk 0:00:54]} 33. Kxg1 {[%clk 0:01:35]}  Bc4 {[%clk 0:00:54]} 34. Rc7 {[%clk 0:01:26]}  Qb1+ {[%clk 0:00:38]} 35. Kh2 {[%clk 0:01:25]}  Qb8 {[%clk 0:00:39]} 36. Qf4 {[%clk 0:01:12]}  Be6 {[%clk 0:00:35]} 37. Rc6 {[%clk 0:01:09]}  Qb5 {[%clk 0:00:34]} 38. Qc7 {[%clk 0:01:02]}  Rf8 {[%clk 0:00:33]} 39. Rc5 {[%clk 0:00:57]}  Qd3 {[%clk 0:00:30]} 40. Rc3 {[%clk 0:00:56]}  Qd2 {[%clk 0:00:27]} 41. Qe5 {[%clk 0:00:53]}  Qb2 {[%clk 0:00:19]} 42. Qd4 {[%clk 0:00:49]}  Qb8+ {[%clk 0:00:18]} 43. Qf4 {[%clk 0:00:47]}  Qb5 {[%clk 0:00:15]} 44. Qc7 {[%clk 0:00:46]}  Rc8 {[%clk 0:00:14]} 45. Qxc8+ {[%clk 0:00:20]}  Bxc8 {[%clk 0:00:15]} 46. Rxc8+ {[%clk 0:00:20]}  Kh7 {[%clk 0:00:16]} 47. Rf8 {[%clk 0:00:16]}  f6 {[%clk 0:00:14]} 48. Be4+ {[%clk 0:00:13]}  g6 {[%clk 0:00:13]} 49. Rf7+ {[%clk 0:00:10]}  Kg8 {[%clk 0:00:13]} 50. Bxg6 {[%clk 0:00:10]}  Qxa5 {[%clk 0:00:14]} 51. Ra7 {[%clk 0:00:07]}  Qe5+ {[%clk 0:00:13]} 52. Kh1 {[%clk 0:00:06]}  a5 {[%clk 0:00:11]} 53. Bf7+ {[%clk 0:00:05]}  Kf8 {[%clk 0:00:11]} 54. Bc4 {[%clk 0:00:04]}  Qa1+ {[%clk 0:00:10]} 55. Kh2 {[%clk 0:00:04]}  Qc3 {[%clk 0:00:11]} 56. Bd5 {[%clk 0:00:03]}  Qe5+ {[%clk 0:00:11]} 0-1


[Site "https://www.chess.com"]

[Event "Titled Tuesday Blitz March 22 Late 2022"]
[White "Shuvalova, Polina"]
[Black "Manukian, Artak"]
[WhiteFideId "24171760"]
[BlackFideId "13301373"]
[WhiteElo "2355"]
[BlackElo "2441"]
[Result "1-0"]
[Round "03"]
[TimeControl "180+1"]
[Date "2022.03.22"]
[WhiteClock "0:01:19"]
[BlackClock "0:00:01"]

1. d4 {[%clk 0:03:00]}  Nf6 {[%clk 0:02:59]} 2. Nf3 {[%clk 0:03:00]}  d5 {[%clk 0:02:59]} 3. Bf4 {[%clk 0:03:00]}  e6 {[%clk 0:02:50]} 4. e3 {[%clk 0:03:00]}  a6 {[%clk 0:02:50]} 5. Bd3 {[%clk 0:02:55]}  c5 {[%clk 0:02:50]} 6. c3 {[%clk 0:02:55]}  Nc6 {[%clk 0:02:50]} 7. Nbd2 {[%clk 0:02:55]}  Bd6 {[%clk 0:02:47]} 8. dxc5 {[%clk 0:02:54]}  Bxc5 {[%clk 0:02:47]} 9. O-O {[%clk 0:02:54]}  O-O {[%clk 0:02:46]} 10. Qe2 {[%clk 0:02:54]}  h6 {[%clk 0:02:34]} 11. Rfd1 {[%clk 0:02:52]}  Bd6 {[%clk 0:02:30]} 12. Bxd6 {[%clk 0:02:50]}  Qxd6 {[%clk 0:02:30]} 13. c4 {[%clk 0:02:51]}  Qe7 {[%clk 0:02:17]} 14. Rac1 {[%clk 0:02:48]}  Bd7 {[%clk 0:02:06]} 15. a3 {[%clk 0:02:40]}  Rfd8 {[%clk 0:02:04]} 16. b4 {[%clk 0:02:39]}  Rac8 {[%clk 0:02:00]} 17. cxd5 {[%clk 0:02:35]}  Nxd5 {[%clk 0:01:59]} 18. Ne4 {[%clk 0:02:35]}  Na7 {[%clk 0:01:50]} 19. Nc5 {[%clk 0:02:23]}  Bb5 {[%clk 0:01:49]} 20. h3 {[%clk 0:02:11]}  Nb6 {[%clk 0:01:16]} 21. Nd4 {[%clk 0:02:03]}  Bxd3 {[%clk 0:01:08]} 22. Rxd3 {[%clk 0:02:00]}  Nc6 {[%clk 0:01:05]} 23. Nxc6 {[%clk 0:01:57]}  Rxc6 {[%clk 0:00:49]} 24. Rxd8+ {[%clk 0:01:57]}  Qxd8 {[%clk 0:00:49]} 25. Rd1 {[%clk 0:01:58]}  Qe7 {[%clk 0:00:37]} 26. Qd3 {[%clk 0:01:57]}  Nd5 {[%clk 0:00:18]} 27. e4 {[%clk 0:01:56]}  Nf6 {[%clk 0:00:18]} 28. f3 {[%clk 0:01:46]}  g5 {[%clk 0:00:15]} 29. Qd8+ {[%clk 0:01:45]}  Qxd8 {[%clk 0:00:14]} 30. Rxd8+ {[%clk 0:01:46]}  Kg7 {[%clk 0:00:13]} 31. Rb8 {[%clk 0:01:41]}  b6 {[%clk 0:00:10]} 32. Nxa6 {[%clk 0:01:42]}  Nd7 {[%clk 0:00:09]} 33. Rb7 {[%clk 0:01:41]}  Ne5 {[%clk 0:00:09]} 34. Nc7 {[%clk 0:01:34]}  Nd3 {[%clk 0:00:02]} 35. b5 {[%clk 0:01:30]}  Rc1+ {[%clk 0:00:02]} 36. Kh2 {[%clk 0:01:29]}  h5 {[%clk 0:00:02]} 37. Nxe6+ {[%clk 0:01:29]}  Kf6 {[%clk 0:00:01]} 38. Nd4 {[%clk 0:01:25]}  h4 {[%clk 0:00:02]} 39. Rxb6+ {[%clk 0:01:19]}  Kg7 {[%clk 0:00:01]} 40. Nf5+ {[%clk 0:01:19]} 1-0


[Site "https://www.chess.com"]

[Event "Titled Tuesday Blitz March 22 Late 2022"]
[White "Smirnov, Pavel"]
[Black "Shandrygin, Nikita"]
[WhiteFideId "4123425"]
[BlackFideId "24198668"]
[WhiteElo "2797"]
[BlackElo "2543"]
[Result "1-0"]
[Round "03"]
[TimeControl "180+1"]
[Date "2022.03.22"]
[WhiteClock "0:01:14"]
[BlackClock "0:00:07"]

1. d4 {[%clk 0:03:00]}  d5 {[%clk 0:02:59]} 2. c4 {[%clk 0:02:59]}  Nc6 {[%clk 0:03:00]} 3. cxd5 {[%clk 0:02:57]}  Qxd5 {[%clk 0:03:01]} 4. e3 {[%clk 0:02:58]}  e5 {[%clk 0:03:01]} 5. Nc3 {[%clk 0:02:59]}  Bb4 {[%clk 0:03:01]} 6. Bd2 {[%clk 0:03:00]}  Bxc3 {[%clk 0:03:02]} 7. bxc3 {[%clk 0:03:00]}  Nf6 {[%clk 0:03:02]} 8. c4 {[%clk 0:02:57]}  Qd6 {[%clk 0:03:02]} 9. d5 {[%clk 0:02:58]}  Ne7 {[%clk 0:03:03]} 10. Qb1 {[%clk 0:02:58]}  c5 {[%clk 0:03:02]} 11. Bd3 {[%clk 0:02:56]}  O-O {[%clk 0:03:01]} 12. Ne2 {[%clk 0:02:55]}  Ng6 {[%clk 0:02:59]} 13. O-O {[%clk 0:02:51]}  Re8 {[%clk 0:02:58]} 14. Ng3 {[%clk 0:02:47]}  Rb8 {[%clk 0:02:53]} 15. a4 {[%clk 0:02:45]}  Nh4 {[%clk 0:01:49]} 16. f4 {[%clk 0:02:34]}  exf4 {[%clk 0:01:42]} 17. Rxf4 {[%clk 0:02:33]}  Ng6 {[%clk 0:01:40]} 18. Rf1 {[%clk 0:02:25]}  Ne5 {[%clk 0:01:40]} 19. Be2 {[%clk 0:02:23]}  Bg4 {[%clk 0:01:35]} 20. Nf5 {[%clk 0:02:21]}  Qd7 {[%clk 0:01:33]} 21. Bxg4 {[%clk 0:02:15]}  Nfxg4 {[%clk 0:01:25]} 22. h3 {[%clk 0:02:14]}  Nf6 {[%clk 0:00:53]} 23. Qc2 {[%clk 0:02:10]}  Ng6 {[%clk 0:00:17]} 24. Bc3 {[%clk 0:02:04]}  Re5 {[%clk 0:00:16]} 25. Bxe5 {[%clk 0:01:59]}  Nxe5 {[%clk 0:00:17]} 26. Rab1 {[%clk 0:01:57]}  Re8 {[%clk 0:00:16]} 27. a5 {[%clk 0:01:50]}  Nh5 {[%clk 0:00:14]} 28. g4 {[%clk 0:01:47]}  Nf6 {[%clk 0:00:10]} 29. Kg2 {[%clk 0:01:46]}  Nexg4 {[%clk 0:00:07]} 30. hxg4 {[%clk 0:01:45]}  Nxg4 {[%clk 0:00:08]} 31. Rf4 {[%clk 0:01:44]}  Ne5 {[%clk 0:00:07]} 32. Rh1 {[%clk 0:01:40]}  g6 {[%clk 0:00:07]} 33. Ng3 {[%clk 0:01:31]}  Ng4 {[%clk 0:00:05]} 34. Rxg4 {[%clk 0:01:30]}  Qxg4 {[%clk 0:00:06]} 35. e4 {[%clk 0:01:26]}  h5 {[%clk 0:00:05]} 36. Qd1 {[%clk 0:01:25]}  Qd7 {[%clk 0:00:05]} 37. Nxh5 {[%clk 0:01:19]}  gxh5 {[%clk 0:00:06]} 38. Qxh5 {[%clk 0:01:18]}  Kf8 {[%clk 0:00:07]} 39. Qg5 {[%clk 0:01:14]} 1-0


[Site "https://www.chess.com"]